[Event "*** Titled Tuesday Blitz AM"]
[Site "Chess.com"]
[Date "2020.01.07"]
[Round "7"]
[White "mouseWLZ"]
[Black "Sanan_Sjugirov"]
[Result "0-1"]
[WhiteElo "2797"]
[BlackElo "2955"]
[TimeControl "180+2"]
[EndTime "10:35:31 PST"]
[Termination "Sanan_Sjugirov won by resignation"]

1. d4 {[%clk 0:03:01]} 1... Nf6 {[%clk 0:03:00.4]} 2. Bf4 {[%clk 0:03:02.3]}
2... e6 {[%clk 0:02:57.1]} 3. e3 {[%clk 0:03:03.5]} 3... c5 {[%clk 0:02:57.7]}
4. c3 {[%clk 0:03:02.9]} 4... b6 {[%clk 0:02:55.8]} 5. Nf3 {[%clk 0:03:00.3]}
5... Bb7 {[%clk 0:02:56.1]} 6. Nbd2 {[%clk 0:02:59]} 6... cxd4 {[%clk
0:02:56.6]} 7. exd4 {[%clk 0:02:59.6]} 7... Be7 {[%clk 0:02:57.5]} 8. Bd3 {[%clk
0:03:00.1]} 8... O-O {[%clk 0:02:57.9]} 9. O-O {[%clk 0:03:01]} 9... d6 {[%clk
0:02:59.2]} 10. a4 {[%clk 0:03:00.9]} 10... a6 {[%clk 0:03:00.2]} 11. Qe2 {[%clk
0:03:01.8]} 11... Nbd7 {[%clk 0:02:59.4]} 12. b4 {[%clk 0:02:55.7]} 12... Re8
{[%clk 0:02:55.9]} 13. Rfd1 {[%clk 0:02:44.5]} 13... Nd5 {[%clk 0:02:56.2]} 14.
Bg3 {[%clk 0:01:47.2]} 14... Nxc3 {[%clk 0:02:55.7]} 15. Bxh7+ {[%clk
0:01:46.7]} 15... Kh8 {[%clk 0:02:56.6]} 16. Qd3 {[%clk 0:01:43.6]} 16... Nxd1
{[%clk 0:02:57.3]} 17. Rxd1 {[%clk 0:01:32.8]} 17... Nf8 {[%clk 0:02:31.8]} 18.
Be4 {[%clk 0:01:30.7]} 18... d5 {[%clk 0:02:13.7]} 19. Ne5 {[%clk 0:01:31.2]}
19... dxe4 {[%clk 0:01:48.8]} 20. Nxf7+ {[%clk 0:01:32.1]} 20... Kg8 {[%clk
0:01:50.2]} 21. Nxd8 {[%clk 0:01:33]} 21... exd3 {[%clk 0:01:51.5]} 22. Nxb7
{[%clk 0:01:32.9]} 22... Bxb4 {[%clk 0:01:52.4]} 23. Nb3 {[%clk 0:01:32.2]}
23... Rac8 {[%clk 0:01:46.6]} 24. Kf1 {[%clk 0:01:33.1]} 24... Rc6 {[%clk
0:01:37.2]} 25. Nc1 {[%clk 0:01:31.4]} 25... d2 {[%clk 0:01:03.5]} 26. Nd3
{[%clk 0:01:31.6]} 26... Ba3 {[%clk 0:00:49.8]} 27. Rxd2 {[%clk 0:01:30.5]}
27... Re7 {[%clk 0:00:50.1]} 28. Nd8 {[%clk 0:01:31.1]} 28... Rc8 {[%clk
0:00:47.9]} 29. Ra2 {[%clk 0:01:30.9]} 29... Rxd8 {[%clk 0:00:37.6]} 30. Rxa3
{[%clk 0:01:31.1]} 30... Rxd4 {[%clk 0:00:39.2]} 31. Ke2 {[%clk 0:01:29.9]}
31... Ng6 {[%clk 0:00:34.8]} 32. Ke3 {[%clk 0:01:28.1]} 32... Red7 {[%clk
0:00:33.6]} 33. Ne5 {[%clk 0:01:26.5]} 33... Nxe5 {[%clk 0:00:34]} 34. Bxe5
{[%clk 0:01:28.4]} 34... Rc4 {[%clk 0:00:33.9]} 35. Rb3 {[%clk 0:01:29]} 35...
Rb7 {[%clk 0:00:28.7]} 36. Ra3 {[%clk 0:01:30.3]} 36... Rc5 {[%clk 0:00:20.8]}
37. Bd4 {[%clk 0:01:25.4]} 37... Ra5 {[%clk 0:00:21]} 38. Bc3 {[%clk 0:01:23.7]}
38... Rh5 {[%clk 0:00:20.6]} 39. h3 {[%clk 0:01:23.6]} 39... Rd5 {[%clk
0:00:21.6]} 40. f4 {[%clk 0:01:22.4]} 40... Kf7 {[%clk 0:00:16.9]} 41. Be5
{[%clk 0:01:21.4]} 41... b5 {[%clk 0:00:17.6]} 42. axb5 {[%clk 0:01:20]} 42...
axb5 {[%clk 0:00:19.5]} 43. h4 {[%clk 0:01:21.1]} 43... b4 {[%clk 0:00:20.9]}
44. Rb3 {[%clk 0:01:21.7]} 44... Ra5 {[%clk 0:00:21.4]} 45. Kd3 {[%clk 0:01:21]}
45... Ra3 {[%clk 0:00:21.8]} 46. Kc4 {[%clk 0:01:22.5]} 46... Rxb3 {[%clk
0:00:22.8]} 47. Kxb3 {[%clk 0:01:23.3]} 47... Rd7 {[%clk 0:00:20.5]} 48. Kxb4
{[%clk 0:01:23.4]} 48... Rd3 {[%clk 0:00:21.4]} 49. h5 {[%clk 0:01:11.7]} 49...
Rg3 {[%clk 0:00:20.8]} 50. f5 {[%clk 0:01:12.8]} 50... Rg4+ {[%clk 0:00:21.6]}
51. Kc5 {[%clk 0:01:11]} 51... exf5 {[%clk 0:00:21.7]} 52. g3 {[%clk 0:01:10.1]}
52... Rg5 {[%clk 0:00:21.8]} 53. Kd4 {[%clk 0:01:11.2]} 53... Rxh5 {[%clk
0:00:22.6]} 54. Bf4 {[%clk 0:01:12.5]} 54... g5 {[%clk 0:00:22.5]} 55. Bc7
{[%clk 0:01:13]} 55... Ke6 {[%clk 0:00:21.8]} 56. Ke3 {[%clk 0:01:13.2]} 56...
Rh8 {[%clk 0:00:22.1]} 57. Kf2 {[%clk 0:01:09.2]} 57... Rc8 {[%clk 0:00:22.5]}
58. Bb6 {[%clk 0:01:10.1]} 58... Rc2+ {[%clk 0:00:23.1]} 59. Kf3 {[%clk
0:01:10.8]} 59... Rc3+ {[%clk 0:00:24.4]} 60. Kf2 {[%clk 0:01:11.8]} 60... Kd5
{[%clk 0:00:23.4]} 61. Bd8 {[%clk 0:01:12.6]} 61... g4 {[%clk 0:00:23.8]} 62.
Bg5 {[%clk 0:01:11.6]} 62... Ke4 {[%clk 0:00:24.1]} 63. Bh4 {[%clk 0:01:12.3]}
63... Rc2+ {[%clk 0:00:24.9]} 64. Kg1 {[%clk 0:01:13.2]} 64... Kf3 {[%clk
0:00:26.3]} 0-1

[Event "*** Titled Tuesday Blitz AM"]
[Site "Chess.com"]
[Date "2020.01.07"]
[Round "7"]
[White "Supernotar"]
[Black "JozefKneht"]
[Result "0-1"]
[WhiteElo "2566"]
[BlackElo "2412"]
[TimeControl "180+2"]
[EndTime "10:35:35 PST"]
[Termination "JozefKneht won by checkmate"]

1. d4 {[%clk 0:03:01.9]} 1... d5 {[%clk 0:03:00.2]} 2. c4 {[%clk 0:03:02.7]}
2... c6 {[%clk 0:03:01.2]} 3. e3 {[%clk 0:03:03.4]} 3... Nf6 {[%clk 0:03:02.1]}
4. Bd3 {[%clk 0:03:04.4]} 4... g6 {[%clk 0:03:00.5]} 5. Nc3 {[%clk 0:03:04.9]}
5... Bg7 {[%clk 0:03:00.8]} 6. Nge2 {[%clk 0:03:06.1]} 6... O-O {[%clk
0:03:00.6]} 7. O-O {[%clk 0:03:07.1]} 7... Bg4 {[%clk 0:02:59.4]} 8. b3 {[%clk
0:03:03.4]} 8... Nbd7 {[%clk 0:02:54.4]} 9. Bb2 {[%clk 0:03:02.9]} 9... Bxe2
{[%clk 0:02:39.1]} 10. Qxe2 {[%clk 0:03:02.5]} 10... Re8 {[%clk 0:02:40.1]} 11.
e4 {[%clk 0:03:01.1]} 11... dxe4 {[%clk 0:02:40.5]} 12. Nxe4 {[%clk 0:03:01.6]}
12... Nxe4 {[%clk 0:02:41.8]} 13. Bxe4 {[%clk 0:03:02.1]} 13... Nf6 {[%clk
0:02:41.1]} 14. Bf3 {[%clk 0:03:02.1]} 14... e6 {[%clk 0:02:38.1]} 15. Rad1
{[%clk 0:03:02]} 15... Qc7 {[%clk 0:02:35.8]} 16. Rd3 {[%clk 0:03:02.7]} 16...
a5 {[%clk 0:02:36]} 17. a4 {[%clk 0:03:03]} 17... Rad8 {[%clk 0:02:35.2]} 18.
Rfd1 {[%clk 0:03:03.8]} 18... Rd7 {[%clk 0:02:35.4]} 19. g3 {[%clk 0:03:04.2]}
19... Red8 {[%clk 0:02:35.9]} 20. Kg2 {[%clk 0:03:04.8]} 20... b5 {[%clk
0:02:20.4]} 21. axb5 {[%clk 0:02:59.5]} 21... cxb5 {[%clk 0:02:20.2]} 22. c5
{[%clk 0:02:54.4]} 22... Nd5 {[%clk 0:02:17.8]} 23. Qd2 {[%clk 0:02:48.9]} 23...
Nb4 {[%clk 0:02:15.2]} 24. Re3 {[%clk 0:02:44.6]} 24... Bxd4 {[%clk 0:02:02.1]}
25. Bxd4 {[%clk 0:02:41]} 25... Rxd4 {[%clk 0:02:01.4]} 26. Qxd4 {[%clk
0:02:40]} 26... Rxd4 {[%clk 0:02:03.3]} 27. Rxd4 {[%clk 0:02:41.1]} 27... Nc2
{[%clk 0:02:02.3]} 28. Red3 {[%clk 0:02:39.8]} 28... Nxd4 {[%clk 0:02:01.8]} 29.
Rxd4 {[%clk 0:02:41.7]} 29... Qxc5 {[%clk 0:02:02.9]} 30. Rd8+ {[%clk
0:02:42.6]} 30... Kg7 {[%clk 0:02:02.5]} 31. Rd3 {[%clk 0:02:40.6]} 31... a4
{[%clk 0:02:00.6]} 32. bxa4 {[%clk 0:02:40.9]} 32... bxa4 {[%clk 0:02:02.5]} 33.
Bd1 {[%clk 0:02:39]} 33... Qb4 {[%clk 0:01:57]} 34. Re3 {[%clk 0:02:29.8]} 34...
a3 {[%clk 0:01:53.5]} 35. Bb3 {[%clk 0:02:30]} 35... Qd2 {[%clk 0:01:44.6]} 36.
Bxe6 {[%clk 0:02:24.6]} 36... fxe6 {[%clk 0:01:43.8]} 37. Rxa3 {[%clk
0:02:25.6]} 37... Qd5+ {[%clk 0:01:42]} 38. Kf1 {[%clk 0:02:26.6]} 38... Qh1+
{[%clk 0:01:36.9]} 39. Ke2 {[%clk 0:02:27.7]} 39... Qxh2 {[%clk 0:01:38.3]} 40.
Ra7+ {[%clk 0:02:29.1]} 40... Kf6 {[%clk 0:01:38.2]} 41. Ra4 {[%clk 0:02:27.4]}
41... Qh1 {[%clk 0:01:37.5]} 42. Rh4 {[%clk 0:02:26.4]} 42... Qc1 {[%clk
0:01:24]} 43. Rxh7 {[%clk 0:02:26.7]} 43... Qc2+ {[%clk 0:01:24.6]} 44. Kf1
{[%clk 0:02:25.6]} 44... g5 {[%clk 0:01:23.5]} 45. Rh8 {[%clk 0:02:21.7]} 45...
g4 {[%clk 0:01:21.7]} 46. Rf8+ {[%clk 0:02:21.3]} 46... Ke7 {[%clk 0:01:21.3]}
47. Rf4 {[%clk 0:02:21.5]} 47... Qd1+ {[%clk 0:01:20]} 48. Kg2 {[%clk
0:02:22.6]} 48... e5 {[%clk 0:01:20.7]} 49. Rb4 {[%clk 0:02:19]} 49... Ke6
{[%clk 0:01:18.1]} 50. Rb6+ {[%clk 0:02:11.4]} 50... Kf5 {[%clk 0:01:16.2]} 51.
Rb4 {[%clk 0:02:08.8]} 51... Qf3+ {[%clk 0:01:15.5]} 52. Kg1 {[%clk 0:02:09.4]}
52... e4 {[%clk 0:01:17]} 53. Rb5+ {[%clk 0:02:09.7]} 53... Ke6 {[%clk
0:01:17.9]} 54. Rb6+ {[%clk 0:02:06.3]} 54... Kd5 {[%clk 0:01:17.3]} 55. Rb5+
{[%clk 0:02:07.4]} 55... Kc6 {[%clk 0:01:16.2]} 56. Re5 {[%clk 0:02:08.4]} 56...
Kd6 {[%clk 0:01:16.7]} 57. Re8 {[%clk 0:02:09.3]} 57... Kd5 {[%clk 0:01:16.5]}
58. Rd8+ {[%clk 0:02:09.2]} 58... Kc4 {[%clk 0:01:16.3]} 59. Rd2 {[%clk
0:01:47]} 59... e3 {[%clk 0:01:14.7]} 60. fxe3 {[%clk 0:01:46.5]} 60... Qxg3+
{[%clk 0:01:13.4]} 61. Rg2 {[%clk 0:01:46.3]} 61... Qxe3+ {[%clk 0:01:13.6]} 62.
Kh2 {[%clk 0:01:47.5]} 62... Qf4+ {[%clk 0:01:13]} 63. Rg3 {[%clk 0:01:46.9]}
63... Qf2+ {[%clk 0:01:02.6]} 64. Kh1 {[%clk 0:01:45.8]} 64... Qf4 {[%clk
0:00:50.6]} 65. Kg2 {[%clk 0:01:41.5]} 65... Kd4 {[%clk 0:00:47.3]} 66. Kh1
{[%clk 0:01:41.8]} 66... Ke4 {[%clk 0:00:42.4]} 67. Kg2 {[%clk 0:01:42.1]} 67...
Qd2+ {[%clk 0:00:42.5]} 68. Kh1 {[%clk 0:01:43]} 68... Kf4 {[%clk 0:00:42.9]}
69. Rg1 {[%clk 0:01:43.5]} 69... Qd5+ {[%clk 0:00:32.6]} 70. Kh2 {[%clk
0:01:44.3]} 70... Qh5+ {[%clk 0:00:31.2]} 71. Kg2 {[%clk 0:01:45.5]} 71... Qh3+
{[%clk 0:00:32.3]} 72. Kf2 {[%clk 0:01:46.8]} 72... Qf3+ {[%clk 0:00:31.5]} 73.
Ke1 {[%clk 0:01:47.7]} 73... g3 {[%clk 0:00:32.2]} 74. Rf1 {[%clk 0:01:48.8]}
74... g2 {[%clk 0:00:27.9]} 75. Rxf3+ {[%clk 0:01:49.6]} 75... Kxf3 {[%clk
0:00:28.9]} 76. Kd2 {[%clk 0:01:50.8]} 76... g1=Q {[%clk 0:00:30.1]} 77. Kc2
{[%clk 0:01:51.5]} 77... Qe3 {[%clk 0:00:30.7]} 78. Kb2 {[%clk 0:01:52.6]} 78...
Qd3 {[%clk 0:00:30.2]} 79. Ka1 {[%clk 0:01:53.5]} 79... Qe2 {[%clk 0:00:30.9]}
80. Kb1 {[%clk 0:01:55]} 80... Ke3 {[%clk 0:00:32.4]} 81. Ka1 {[%clk 0:01:56.9]}
81... Kd3 {[%clk 0:00:34.1]} 82. Kb1 {[%clk 0:01:58.8]} 82... Kc3 {[%clk
0:00:35]} 83. Ka1 {[%clk 0:02:00.7]} 83... Qb2# {[%clk 0:00:36.2]} 0-1

[Event "*** Titled Tuesday Blitz AM"]
[Site "Chess.com"]
[Date "2020.01.07"]
[Round "7"]
[White "Leonid_Starozhilov"]
[Black "manmanlai1"]
[Result "1-0"]
[WhiteElo "2702"]
[BlackElo "2378"]
[TimeControl "180+2"]
[EndTime "10:35:50 PST"]
[Termination "Leonid_Starozhilov won by resignation"]

1. Nf3 {[%clk 0:03:01.4]} 1... d5 {[%clk 0:03:00]} 2. d4 {[%clk 0:02:59.6]} 2...
e6 {[%clk 0:02:59]} 3. Bg5 {[%clk 0:02:56.7]} 3... Be7 {[%clk 0:02:55.5]} 4.
Bxe7 {[%clk 0:02:55.4]} 4... Qxe7 {[%clk 0:02:56.7]} 5. c3 {[%clk 0:02:57.3]}
5... c6 {[%clk 0:02:48.2]} 6. Nbd2 {[%clk 0:02:56.9]} 6... Nd7 {[%clk 0:02:49]}
7. e4 {[%clk 0:02:57]} 7... dxe4 {[%clk 0:02:36.9]} 8. Nxe4 {[%clk 0:02:58.9]}
8... Ngf6 {[%clk 0:02:37.3]} 9. Nxf6+ {[%clk 0:02:55.8]} 9... Qxf6 {[%clk
0:02:39.2]} 10. Bd3 {[%clk 0:02:26.5]} 10... O-O {[%clk 0:02:35.6]} 11. Qe2
{[%clk 0:02:01.6]} 11... Rd8 {[%clk 0:02:35.8]} 12. O-O {[%clk 0:02:01.3]} 12...
g6 {[%clk 0:02:30.2]} 13. Rad1 {[%clk 0:01:26.7]} 13... b6 {[%clk 0:02:30.4]}
14. Ne5 {[%clk 0:01:22]} 14... Bb7 {[%clk 0:02:30.9]} 15. Ng4 {[%clk 0:00:36.1]}
15... Qg7 {[%clk 0:01:58]} 16. Ba6 {[%clk 0:00:36.7]} 16... Bxa6 {[%clk
0:01:51.2]} 17. Qxa6 {[%clk 0:00:38.6]} 17... Rdb8 {[%clk 0:01:32.1]} 18. Rfe1
{[%clk 0:00:35]} 18... Qf8 {[%clk 0:01:30.4]} 19. Qe2 {[%clk 0:00:32.7]} 19...
Rd8 {[%clk 0:01:27.4]} 20. h4 {[%clk 0:00:28.2]} 20... Qe7 {[%clk 0:01:22.8]}
21. h5 {[%clk 0:00:28.7]} 21... Qg5 {[%clk 0:01:22.6]} 22. Qf3 {[%clk
0:00:25.5]} 22... Rac8 {[%clk 0:01:20.7]} 23. Ne5 {[%clk 0:00:23.7]} 23... Nxe5
{[%clk 0:01:11.6]} 24. Rxe5 {[%clk 0:00:25.6]} 24... Qh6 {[%clk 0:01:03.3]} 25.
Qf6 {[%clk 0:00:24.3]} 25... Re8 {[%clk 0:00:53.5]} 26. Rde1 {[%clk 0:00:22.4]}
26... Qg7 {[%clk 0:00:51.7]} 27. Qf4 {[%clk 0:00:23.5]} 27... Rcd8 {[%clk
0:00:47.6]} 28. Qf3 {[%clk 0:00:20.9]} 28... Rd5 {[%clk 0:00:46.4]} 29. Rxd5
{[%clk 0:00:17.6]} 29... cxd5 {[%clk 0:00:45.9]} 30. Qxd5 {[%clk 0:00:17.6]}
30... Qf6 {[%clk 0:00:38.8]} 31. Qc6 {[%clk 0:00:17.3]} 31... Qe7 {[%clk
0:00:27.5]} 32. hxg6 {[%clk 0:00:18.3]} 32... hxg6 {[%clk 0:00:28.1]} 33. a4
{[%clk 0:00:18]} 33... Kg7 {[%clk 0:00:26]} 34. g3 {[%clk 0:00:19]} 34... Rh8
{[%clk 0:00:20.4]} 35. Qe4 {[%clk 0:00:20.2]} 35... Qg5 {[%clk 0:00:18.8]} 36.
Qe5+ {[%clk 0:00:21.4]} 36... Qxe5 {[%clk 0:00:20.2]} 37. Rxe5 {[%clk
0:00:23.3]} 37... Rc8 {[%clk 0:00:20.9]} 38. Rb5 {[%clk 0:00:24.7]} 38... Rc6
{[%clk 0:00:20.8]} 39. Kf1 {[%clk 0:00:26]} 39... Kf6 {[%clk 0:00:22]} 40. a5
{[%clk 0:00:27.1]} 40... Ke7 {[%clk 0:00:22.5]} 41. axb6 {[%clk 0:00:27.5]}
41... axb6 {[%clk 0:00:24.2]} 42. Rb4 {[%clk 0:00:28.4]} 42... Kd6 {[%clk
0:00:25.4]} 43. Ra4 {[%clk 0:00:29.5]} 43... g5 {[%clk 0:00:25.9]} 44. Ke2
{[%clk 0:00:28.7]} 44... f5 {[%clk 0:00:25.2]} 45. Kd3 {[%clk 0:00:27.8]} 45...
Rc8 {[%clk 0:00:24.9]} 46. Ra6 {[%clk 0:00:27.2]} 46... Kc6 {[%clk 0:00:24.8]}
47. Ra1 {[%clk 0:00:27.7]} 47... Rh8 {[%clk 0:00:25.4]} 48. Re1 {[%clk
0:00:29.2]} 48... Kd6 {[%clk 0:00:26]} 49. c4 {[%clk 0:00:29.7]} 49... Rh2
{[%clk 0:00:25.8]} 50. Re2 {[%clk 0:00:30.6]} 50... Rh1 {[%clk 0:00:26.7]} 51.
Kc2 {[%clk 0:00:29.8]} 51... Rf1 {[%clk 0:00:25.7]} 52. b4 {[%clk 0:00:27.6]}
52... Ra1 {[%clk 0:00:25.2]} 53. Kb3 {[%clk 0:00:27.4]} 53... g4 {[%clk
0:00:24.6]} 54. c5+ {[%clk 0:00:26.3]} 54... bxc5 {[%clk 0:00:25.5]} 55. dxc5+
{[%clk 0:00:25.7]} 55... Kd7 {[%clk 0:00:21.6]} 56. Kc4 {[%clk 0:00:26]} 56...
Rd1 {[%clk 0:00:13.7]} 57. Kb5 {[%clk 0:00:24.7]} 57... Rd5 {[%clk 0:00:14.5]}
58. Kb6 {[%clk 0:00:24.8]} 58... e5 {[%clk 0:00:15.9]} 59. b5 {[%clk 0:00:24.8]}
59... e4 {[%clk 0:00:16.3]} 60. c6+ {[%clk 0:00:25.8]} 1-0

[Event "*** Titled Tuesday Blitz AM"]
[Site "Chess.com"]
[Date "2020.01.07"]
[Round "7"]
[White "AminMolaei"]
[Black "bascheyaro"]
[Result "1-0"]
[WhiteElo "2581"]
[BlackElo "2694"]
[TimeControl "180+2"]
[EndTime "10:36:11 PST"]
[Termination "AminMolaei won by resignation"]

1. d4 {[%clk 0:03:01.9]} 1... d5 {[%clk 0:02:58.8]} 2. c4 {[%clk 0:03:03]} 2...
c6 {[%clk 0:03:00.1]} 3. Nc3 {[%clk 0:03:04.4]} 3... Nf6 {[%clk 0:02:59.6]} 4.
Nf3 {[%clk 0:03:05.9]} 4... Bf5 {[%clk 0:02:58.6]} 5. Qb3 {[%clk 0:03:05.6]}
5... Qb6 {[%clk 0:02:59.5]} 6. c5 {[%clk 0:03:04.2]} 6... Qxb3 {[%clk
0:03:00.5]} 7. axb3 {[%clk 0:03:05.9]} 7... e6 {[%clk 0:02:58.5]} 8. b4 {[%clk
0:03:06.5]} 8... Be7 {[%clk 0:02:51.7]} 9. Bf4 {[%clk 0:02:28.2]} 9... O-O
{[%clk 0:02:51.1]} 10. e3 {[%clk 0:02:29.4]} 10... Nh5 {[%clk 0:02:45.1]} 11.
Bxb8 {[%clk 0:02:20.5]} 11... Rfxb8 {[%clk 0:02:45.5]} 12. b5 {[%clk 0:02:22.2]}
12... Nf6 {[%clk 0:02:17.8]} 13. Ne5 {[%clk 0:02:14.8]} 13... Ng4 {[%clk
0:02:18.8]} 14. Nxg4 {[%clk 0:02:08.2]} 14... Bxg4 {[%clk 0:02:19.8]} 15. b4
{[%clk 0:02:06.8]} 15... a6 {[%clk 0:02:13.5]} 16. bxc6 {[%clk 0:02:02.4]} 16...
bxc6 {[%clk 0:02:14.7]} 17. Ra4 {[%clk 0:02:01.1]} 17... Bf5 {[%clk 0:02:14.7]}
18. Kd2 {[%clk 0:02:01.4]} 18... Bd8 {[%clk 0:02:14]} 19. Bxa6 {[%clk
0:01:58.2]} 19... f6 {[%clk 0:01:53.7]} 20. Rha1 {[%clk 0:01:58.3]} 20... e5
{[%clk 0:01:55.1]} 21. Bd3 {[%clk 0:01:47.3]} 21... Rxa4 {[%clk 0:01:53.9]} 22.
Rxa4 {[%clk 0:01:49.2]} 22... e4 {[%clk 0:01:50.7]} 23. Be2 {[%clk 0:01:45.7]}
23... Bd7 {[%clk 0:01:51.5]} 24. Ra7 {[%clk 0:01:35.3]} 24... Be8 {[%clk
0:01:52.6]} 25. Na2 {[%clk 0:01:35.2]} 25... h5 {[%clk 0:01:40.3]} 26. Kc3
{[%clk 0:01:35.1]} 26... g6 {[%clk 0:01:39.3]} 27. Kb3 {[%clk 0:01:35]} 27...
Kf8 {[%clk 0:01:39]} 28. Nc3 {[%clk 0:01:34.3]} 28... f5 {[%clk 0:01:32.2]} 29.
Ka4 {[%clk 0:01:28.3]} 29... h4 {[%clk 0:01:28.6]} 30. b5 {[%clk 0:01:26]} 30...
g5 {[%clk 0:01:14.3]} 31. bxc6 {[%clk 0:01:11.7]} 31... Bxc6+ {[%clk 0:01:11.8]}
32. Bb5 {[%clk 0:01:12.7]} 32... Ba8 {[%clk 0:01:11.9]} 33. c6 {[%clk
0:01:11.2]} 33... Rc8 {[%clk 0:01:07.5]} 34. Ra6 {[%clk 0:00:53.9]} 34... Ke7
{[%clk 0:01:08.1]} 35. Nxd5+ {[%clk 0:00:53.6]} 35... Kd6 {[%clk 0:01:09.2]} 36.
Nb4 {[%clk 0:00:50.3]} 36... Bc7 {[%clk 0:01:10]} 37. Kb3 {[%clk 0:00:47.9]}
37... f4 {[%clk 0:01:07.7]} 38. Kc4 {[%clk 0:00:41.1]} 38... Rf8 {[%clk
0:01:04.8]} 39. Ra2 {[%clk 0:00:37.3]} 39... Ke6 {[%clk 0:01:00.3]} 40. d5+
{[%clk 0:00:37.4]} 40... Ke5 {[%clk 0:01:00.9]} 41. Na6 {[%clk 0:00:35.8]} 41...
Bd6 {[%clk 0:01:02]} 42. Nc5 {[%clk 0:00:36.4]} 42... Rh8 {[%clk 0:00:57]} 43.
Nd7+ {[%clk 0:00:36]} 43... Kf5 {[%clk 0:00:58.4]} 44. Nb6 {[%clk 0:00:36.1]}
44... f3 {[%clk 0:00:57.7]} 45. g3 {[%clk 0:00:24.7]} 45... hxg3 {[%clk
0:00:42.8]} 46. hxg3 {[%clk 0:00:26.6]} 46... Bxc6 {[%clk 0:00:30.9]} 47. dxc6
{[%clk 0:00:23]} 47... Kg4 {[%clk 0:00:30.1]} 48. Kd5 {[%clk 0:00:21.5]} 48...
Bc7 {[%clk 0:00:31.2]} 49. Na8 {[%clk 0:00:21.8]} 49... Bxg3 {[%clk 0:00:24.9]}
50. fxg3 {[%clk 0:00:22.5]} 50... Kxg3 {[%clk 0:00:26.4]} 51. c7 {[%clk
0:00:23.8]} 51... g4 {[%clk 0:00:26.4]} 52. Kxe4 {[%clk 0:00:24.5]} 52... f2
{[%clk 0:00:24.5]} 53. Nb6 {[%clk 0:00:21.3]} 53... Rh5 {[%clk 0:00:24]} 54.
c8=Q {[%clk 0:00:19.6]} 54... Rxb5 {[%clk 0:00:24.9]} 55. Qc7+ {[%clk
0:00:19.6]} 55... Kg2 {[%clk 0:00:26.3]} 56. Rxf2+ {[%clk 0:00:13]} 56... Kxf2
{[%clk 0:00:26.4]} 57. Qf4+ {[%clk 0:00:14.3]} 57... Ke1 {[%clk 0:00:25.6]} 58.
Nc4 {[%clk 0:00:14.2]} 58... Rb4 {[%clk 0:00:25]} 59. Kd4 {[%clk 0:00:15.2]}
59... Rb5 {[%clk 0:00:22.1]} 60. Qxg4 {[%clk 0:00:15.2]} 60... Kf2 {[%clk
0:00:23.5]} 61. e4 {[%clk 0:00:16.4]} 1-0